bitfinex/quotes_ETHUSD_20260213
["timestamp","ask_amount","ask_price","bid_price","bid_amount"]
[1770982693846,0.11006777,1956.9,1956.6,1.81]
[1770982694218,0.002,1956.8,1956.7,1.27766136]
[1770982695062,1.748484,1957.5,1956.7,1.74559373]
[1770982695740,0.47128667,1957.4,1956.6,4.00867768]
[1770982696828,1.748543,1957.4,1956.6,4.47661005]
[1770982698314,0.47128667,1957.6,1956.7,0.46793237]
[1770982699021,0.47128667,1957.6,1956.8,1.27759607]
[1770982699022,1.74842587,1957.5,1956.8,1.27759607]
[1770982700041,0.47128667,1957.4,1956.8,1.27759607]
[1770982700748,0.47128667,1957.4,1956.6,4.00867865]
[1770982701051,1.74855637,1957.3,1956.6,4.00867865]
[1770982701546,1.74855637,1957.3,1956.6,4.47661102]
[1770982702138,1.74845595,1957.5,1956.6,4.47661102]
[1770982702342,1.74845595,1957.5,1956.7,0.46793237]
[1770982704124,1.74843531,1957.5,1956.8,1.74552844]
[1770982704422,0.47128667,1957.5,1956.8,1.74552844]
[1770982704873,0.47128667,1957.6,1956.9,0.46793237]
[1770982705928,1.2790531,1957.7,1956.9,0.46793237]
[1770982706233,1.75033977,1957.7,1956.9,0.46793237]
[1770982706445,1.75033977,1957.7,1957.0,1.2774655]
[1770982706626,1.75033977,1957.7,1957.1,1.805]
[1770982707039,0.002,1957.4,1957.1,1.805]
[1770982707563,0.002,1957.4,1957.1,2.27293237]
[1770982707931,0.002,1957.7,1957.1,2.27293237]
[1770982708149,1.75030764,1957.7,1957.1,1.805]
[1770982708547,1.75030764,1957.7,1957.1,3.08235302]
[1770982709427,0.47128667,1957.6,1957.1,1.805]
[1770982709829,0.47128667,1957.6,1957.1,3.082389]
[1770982710443,0.002,1957.7,1957.1,3.55032137]
[1770982712028,0.002,1957.7,1957.2,0.47686606]
[1770982712561,0.002,1957.7,1957.3,1.75413576]
[1770982712725,0.002,1957.7,1957.3,2.1982697]
[1770982712926,0.002,1957.7,1957.4,0.47686606]
[1770982713138,0.00153886,1958.0,1957.6,0.47686606]
[1770982713663,0.002,1958.3,1957.6,0.47686606]
[1770982714445,0.03138553,1958.6,1957.6,0.45785394]
[1770982714760,0.03138553,1958.6,1957.8,0.45785394]
[1770982714956,0.03138553,1958.6,1957.9,2.26385394]
[1770982715142,0.03138553,1958.6,1958.0,0.921]
[1770982716258,0.03138553,1958.6,1958.0,1.37885394]
[1770982716646,0.48705148,1958.5,1957.9,1.805]
[1770982718666,1.30781051,1958.6,1958.0,1.27681307]
[1770982719363,0.48705148,1958.3,1957.7,1.27697952]
[1770982719664,0.48705148,1958.3,1958.0,1.804]
[1770982719865,0.002,1958.4,1958.0,1.804]
[1770982720537,0.03138553,1958.6,1958.1,0.45785394]
[1770982721039,0.03138553,1958.6,1958.2,1.27668266]
[1770982721235,0.03138553,1958.6,1958.2,1.7345366]
[1770982721843,0.03138553,1958.6,1958.2,1.27668266]
[1770982722463,0.03138553,1958.6,1958.2,1.7345366]
[1770982725559,0.03138553,1958.6,1958.2,1.27668266]
[1770982726339,0.03138553,1958.6,1958.2,1.7345366]
[1770982730658,0.00153886,1959.0,1958.3,0.45785394]
[1770982730985,0.00153886,1959.0,1958.4,1.813]
[1770982731387,0.48859034,1959.0,1958.5,1.2764871]
[1770982733087,0.002,1958.6,1958.5,1.2764871]
[1770982733267,0.48859034,1959.0,1958.5,1.2764871]
[1770982734993,1.27614386,1959.1,1958.6,0.45785394]
[1770982735297,9.30249049,1960.0,1958.6,0.45785394]
[1770982735298,0.48705148,1960.7,1958.8,5.392]
[1770982735491,0.48705148,1960.7,1959.9,1.3674452]
[1770982735691,0.48705148,1960.6,1959.6,1.82326026]
[1770982735859,0.48705148,1960.6,1959.5,1.826]
[1770982736069,0.48705148,1960.4,1959.5,1.826]
[1770982736277,0.48705148,1960.2,1959.1,1.82326026]
[1770982736482,0.48705148,1960.2,1959.2,3.10200103]
[1770982736702,0.48705148,1960.2,1959.0,0.00153886]
[1770982737196,0.48705148,1960.0,1959.0,0.00153886]
[1770982737974,0.48705148,1959.8,1959.0,0.00153886]
[1770982738503,0.48705148,1959.6,1959.0,0.00153886]
[1770982740472,0.48705148,1959.4,1959.0,0.00153886]
[1770982742726,0.45708815,1959.2,1959.0,0.00153886]
[1770982743072,0.45708815,1959.2,1958.3,5.40381481]
[1770982743303,0.45708815,1959.2,1958.3,3.64926026]
[1770982743509,0.45708815,1959.2,1958.3,1.826]
[1770982743708,0.45708815,1959.2,1958.3,3.10261261]
[1770982744008,0.45708815,1959.2,1958.3,4.92587685]
[1770982744172,0.45708815,1959.2,1958.3,4.92587141]
[1770982744372,0.45708815,1959.2,1958.3,4.92587441]
[1770982744773,1.73318431,1959.1,1958.3,3.09987441]
[1770982745483,1.73318431,1959.1,1958.4,0.001]
[1770982745798,0.45708815,1959.0,1958.4,0.001]
[1770982746175,0.45708815,1959.0,1958.0,3.10260204]
[1770982746611,0.45708815,1959.0,1958.0,1.27934178]
[1770982747409,0.45708815,1958.8,1958.0,0.00253886]
[1770982748213,1.27622645,1958.9,1958.1,0.47797268]
[1770982748577,1.7333146,1958.9,1958.2,1.825]
[1770982748783,0.45708815,1958.8,1958.2,1.825]
[1770982749102,0.45708815,1958.8,1958.0,0.92253886]
[1770982749103,0.45708815,1958.8,1958.0,0.00253886]
[1770982749312,0.45708815,1958.6,1958.0,0.00253886]
[1770982751621,1.73357525,1958.5,1958.0,0.00253886]
[1770982753616,1.2764871,1958.5,1958.0,0.00253886]
[1770982753906,0.45708815,1958.4,1958.0,0.00253886]
[1770982755522,0.45708815,1958.4,1957.9,0.001]
[1770982755704,0.45708815,1958.2,1957.9,0.001]
[1770982756203,0.45708815,1958.2,1957.1,2.67633176]
[1770982756204,0.45708815,1958.2,1957.1,0.47897268]
[1770982756389,0.45708815,1958.2,1957.1,0.001]
[1770982756785,0.45708815,1958.2,1957.1,1.27839581]
[1770982758014,0.45708815,1958.0,1957.1,0.001]
[1770982759794,0.45708815,1958.0,1957.2,0.001]
[1770982760011,0.45708815,1957.8,1957.2,0.001]
[1770982762395,1.27700873,1957.7,1957.2,0.001]
[1770982768519,1.27700873,1957.7,1957.2,0.47897268]
[1770982768709,5.10763349,1957.9,1957.2,0.47897268]
[1770982769105,1.27687828,1957.9,1957.2,0.47897268]
[1770982769406,5.1073793,1958.0,1957.2,0.47897268]
[1770982770738,5.10665086,1958.3,1957.4,0.45190956]
[1770982770938,1.27661747,1958.3,1957.5,0.45190956]
[1770982771805,5.10608039,1958.5,1957.5,0.45190956]
[1770982772007,1.2764871,1958.5,1957.5,0.45190956]
[1770982772250,0.002,1957.9,1957.5,0.45190956]
[1770982772416,1.2764871,1958.5,1957.5,0.45190956]
[1770982772643,0.002,1958.0,1957.7,0.45190956]
[1770982774023,0.002,1958.0,1957.5,1.72904876]
[1770982775544,0.002,1958.0,1957.6,0.46958498]
[1770982776239,1.27652737,1958.5,1957.6,0.46958498]
[1770982778438,1.27652737,1958.5,1957.7,1.74659371]
[1770982779049,0.47136647,1958.4,1957.5,1.74667147]
[1770982779644,0.47136647,1958.4,1957.6,0.46958498]
[1770982779950,1.27652737,1958.5,1957.6,0.46958498]
[1770982780531,1.27652737,1958.5,1957.8,0.46958498]
[1770982780848,0.002,1958.7,1958.0,0.46958498]
[1770982781149,1.27835884,1958.7,1958.0,0.46958498]
[1770982783439,0.002,1958.7,1958.1,0.46958498]
[1770982783612,0.002,1958.7,1957.9,3.55242474]
[1770982785049,0.002,1958.6,1958.0,0.46958498]
[1770982785757,0.002,1958.6,1958.0,1.74637587]
[1770982785959,0.002,1958.6,1958.0,0.46958498]
[1770982787245,0.002,1958.6,1958.1,0.46958498]
[1770982787745,0.002,1958.6,1958.2,1.27668266]
[1770982791254,0.002,1958.6,1958.2,1.74626764]
[1770982791950,0.002,1958.6,1958.1,1.27674786]
[1770982793152,0.002,1958.6,1958.0,1.74635106]
[1770982793848,0.002,1958.6,1958.1,0.46958498]
[1770982794251,0.002,1958.6,1958.2,0.46958498]
[1770982794544,1.27772872,1959.0,1958.2,0.46958498]
[1770982796423,0.00153886,1959.0,1958.4,0.46958498]
[1770982796620,0.00153886,1959.0,1958.5,0.46958498]
[1770982797944,0.002,1958.9,1958.5,0.46958498]
[1770982798553,0.002,1958.9,1958.6,1.74600691]
[1770982798751,0.00153886,1959.0,1958.7,0.46958498]
[1770982799552,1.74720214,1959.5,1958.7,0.46958498]
[1770982800627,1.74720214,1959.5,1958.8,1.2762916]
[1770982800855,0.47038354,1959.4,1958.3,0.49317666]
[1770982801056,0.47038354,1959.4,1958.5,0.49317666]
[1770982801459,0.47038354,1959.4,1958.6,1.803]
[1770982802244,0.47038354,1959.4,1958.3,0.49317666]
[1770982802452,0.47038354,1959.4,1958.4,1.802]
[1770982802665,0.47038354,1959.4,1958.1,1.77085945]
[1770982802666,0.47038354,1959.2,1958.1,1.77085945]
[1770982802843,0.47038354,1959.2,1958.4,1.801]
[1770982803328,0.47038354,1959.2,1958.4,2.29417666]
[1770982803531,0.47038354,1959.2,1958.5,0.49317666]
[1770982803963,0.47038354,1959.2,1958.4,2.29417666]
[1770982804567,1.27609616,1959.1,1958.5,1.76966376]
[1770982806668,1.27593859,1959.4,1958.6,0.49317666]
[1770982809074,5.10360314,1959.5,1958.7,1.76953342]
[1770982809370,5.57357372,1959.6,1958.8,0.49317666]
[1770982809548,5.10319018,1959.6,1958.9,1.802]
[1770982809751,5.57357372,1959.6,1958.9,1.802]
[1770982810972,5.57357372,1959.6,1958.9,2.29517666]
[1770982811175,0.47038354,1959.8,1958.9,3.57136944]
[1770982811353,0.4719224,1960.0,1959.0,0.49317666]
[1770982813176,1.27557528,1959.9,1959.2,0.49317666]
[1770982813539,0.47038354,1959.8,1958.7,0.001]
[1770982813774,0.47038354,1959.7,1958.7,0.001]
[1770982814759,0.47038354,1959.7,1958.7,1.27735306]
[1770982814957,0.47038354,1959.7,1958.7,3.08135306]
[1770982815154,0.47038354,1959.7,1958.7,1.805]
[1770982815378,1.7461541,1959.6,1958.7,1.805]
[1770982815779,0.47038354,1959.5,1958.7,1.805]
[1770982815974,0.47038354,1959.5,1958.7,0.001]
[1770982817579,0.47038354,1959.3,1958.7,0.001]
[1770982819651,0.47038354,1959.1,1958.7,0.001]
[1770982820058,1.27603103,1959.2,1958.7,0.001]
[1770982820478,1.74641457,1959.2,1958.7,0.001]
[1770982820678,0.47038354,1959.1,1958.7,0.001]
[1770982821855,1.74654484,1959.0,1958.7,0.001]
[1770982822055,0.47038354,1958.9,1958.7,0.001]
[1770982822273,0.47038354,1958.9,1958.1,0.49417666]
[1770982822750,0.47038354,1958.9,1958.1,0.001]
[1770982823289,0.47038354,1958.9,1958.7,0.001]
[1770982823600,1.2761613,1959.0,1958.7,0.001]
[1770982823779,1.74654484,1959.0,1958.7,0.001]
[1770982827381,1.2761613,1959.0,1958.7,0.001]
[1770982828083,1.27609616,1959.1,1958.7,0.001]
[1770982834594,5.10424639,1959.2,1958.7,0.001]
[1770982834760,5.57914026,1959.2,1958.7,0.001]
[1770982835984,5.10424639,1959.2,1958.7,0.001]
[1770982836996,5.57914026,1959.2,1958.7,0.001]
[1770982839772,5.10424639,1959.2,1958.7,0.001]
[1770982841696,1.27603103,1959.2,1958.7,0.47415523]
[1770982843409,1.27603103,1959.2,1958.8,0.47315523]
[1770982845299,0.002,1959.3,1958.8,0.47315523]
[1770982845502,0.002,1959.3,1958.8,1.74944315]
[1770982845706,0.002,1959.3,1958.8,1.74943604]
[1770982846012,0.002,1959.3,1958.9,0.47315523]
[1770982848277,0.002,1959.3,1958.7,0.47415523]
[1770982849403,1.2779659,1959.3,1958.8,0.001]
[1770982849606,1.75285977,1959.3,1958.8,0.001]
[1770982850703,1.2779659,1959.3,1958.8,0.47415523]
[1770982851412,0.002,1959.3,1958.8,1.75041169]
[1770982851704,0.002,1959.3,1958.9,0.47315523]
[1770982853988,0.002,1959.3,1958.8,0.001]
[1770982854390,0.47689387,1959.3,1958.8,0.001]
[1770982855709,1.7509249,1959.2,1958.8,0.001]
[1770982856072,1.7509249,1959.2,1958.7,0.001]
[1770982856789,1.7509249,1959.2,1958.8,0.47315523]
[1770982856790,1.27603103,1959.2,1958.8,0.47315523]
[1770982856989,1.27603103,1959.2,1958.7,0.47415523]
[1770982857591,0.002,1959.3,1958.7,1.27735079]
[1770982857790,0.002,1959.3,1958.8,0.47315523]
[1770982859398,0.002,1959.3,1958.7,0.001]
[1770982860188,0.47689387,1959.3,1958.7,0.001]
[1770982860597,0.002,1959.3,1958.7,0.47415523]
[1770982860998,0.49764199,1959.3,1958.7,0.001]
[1770982861318,0.002,1959.3,1958.7,0.46217803]
[1770982862317,0.49764199,1959.3,1958.7,0.001]
[1770982862831,0.49764199,1959.3,1958.8,0.001]
[1770982863124,0.49764199,1959.2,1958.8,0.001]
[1770982863328,0.002,1959.2,1958.8,0.46217803]
[1770982863486,1.27583567,1959.5,1958.9,0.46117803]
[1770982863687,5.10296729,1959.7,1958.9,0.46117803]
[1770982863926,5.10236246,1959.9,1959.0,1.2761613]
[1770982864092,5.10236246,1959.9,1959.1,0.46117803]
[1770982864806,5.10236246,1959.9,1959.2,0.46117803]
[1770982865194,1.27557528,1959.9,1959.2,0.46117803]
[1770982866001,0.00153886,1960.0,1959.4,0.46117803]
[1770982868501,0.00153886,1960.0,1959.5,0.46117803]
[1770982871607,0.00153886,1960.0,1959.5,1.73701128]
[1770982871803,0.00153886,1960.0,1959.6,0.46117803]
[1770982872506,0.00153886,1960.0,1959.8,0.46117803]
[1770982873314,5.10114591,1960.4,1959.8,0.46117803]
[1770982874810,0.49564199,1960.7,1959.8,0.46117803]
[1770982875024,1.27511986,1960.7,1960.0,0.46117803]
[1770982876744,5.10010489,1960.8,1960.2,0.46117803]
[1770982877207,5.09988339,1960.9,1960.3,0.46117803]
[1770982877934,5.09988339,1960.9,1960.1,8.97722416]
[1770982878238,0.49564199,1960.8,1960.0,0.46117803]
[1770982878411,0.49564199,1960.8,1960.2,1.758]
[1770982879277,1.27505482,1960.7,1960.2,1.758]
[1770982879846,5.09983442,1960.9,1960.2,3.49455165]
[1770982880176,5.09983442,1960.9,1960.3,0.46117803]
[1770982881056,5.09983442,1960.9,1960.2,1.758]
[1770982881572,5.59547641,1960.9,1960.2,1.758]
[1770982882133,0.49564199,1960.8,1960.2,1.758]
[1770982882454,0.49564199,1960.8,1959.9,0.46117803]
[1770982882662,0.49564199,1960.8,1959.9,2.21817803]
[1770982882830,0.49564199,1960.8,1959.9,1.757]
[1770982883434,0.49564199,1960.6,1959.9,1.757]
[1770982885462,1.77082689,1960.5,1959.9,1.757]
[1770982888274,1.2751849,1960.5,1960.0,0.001]
[1770982888447,1.2751849,1960.5,1960.0,0.46217803]
[1770982889144,5.10002772,1960.8,1960.0,0.46217803]
[1770982889542,1.27492477,1960.9,1960.0,0.46217803]
[1770982890364,5.10123797,1961.0,1960.2,0.46117803]
[1770982890756,1.27639862,1961.0,1960.2,0.46117803]
[1770982891065,0.00153886,1961.0,1960.2,0.46117803]
[1770982892938,0.00153886,1961.0,1960.4,0.49385845]
[1770982893255,0.00153886,1961.0,1960.5,2.24485845]
[1770982893450,0.00153886,1961.0,1960.5,1.751]
[1770982893752,0.00153886,1961.0,1960.6,0.49385845]
[1770982895276,0.00153886,1961.0,1960.6,1.27510857]
[1770982895442,0.00153886,1961.0,1960.7,0.4790214]
[1770982897668,0.00153886,1961.0,1960.5,3.1490214]
[1770982897960,0.00153886,1961.0,1960.6,1.75]
[1770982899867,0.00153886,1961.0,1960.6,2.2290214]
[1770982900174,0.49887598,1961.0,1960.5,1.75]
[1770982900935,0.49887598,1961.0,1960.5,2.2290214]
[1770982900936,0.00153886,1961.0,1960.5,2.2290214]
[1770982903058,0.00153886,1961.0,1960.6,0.4790214]
[1770982904671,0.00153886,1961.0,1960.5,1.75]
[1770982906181,0.00153886,1961.0,1960.5,2.2290214]
[1770982906692,0.00153886,1961.0,1960.6,0.4790214]
[1770982907676,0.00153886,1961.0,1960.5,1.75]
[1770982907878,0.00153886,1961.0,1960.6,7.23415286]
[1770982908047,0.00153886,1961.0,1960.6,0.4790214]
[1770982910472,0.00153886,1961.0,1960.7,0.4790214]
[1770982911379,1.27464164,1961.4,1960.8,0.4790214]
[1770982911949,1.27464164,1961.4,1960.9,2.2310214]
[1770982912447,1.27446982,1961.6,1960.9,2.2310214]
[1770982912681,1.77180694,1961.6,1960.9,2.2310214]
[1770982913366,0.49733712,1961.5,1960.9,1.752]
[1770982913879,0.49933712,1961.5,1960.9,1.752]
[1770982916376,1.77193689,1961.4,1960.9,1.752]
[1770982917087,5.1003991,1961.5,1960.9,3.50593828]
[1770982917282,5.1003991,1961.5,1961.0,0.4790214]
[1770982917688,1.27655897,1961.5,1961.0,0.4790214]
[1770982917891,1.27655897,1961.5,1960.9,1.752]
[1770982918057,1.27655897,1961.5,1961.0,0.4790214]
[1770982919095,1.27655897,1961.5,1960.9,1.752]
[1770982919096,0.002,1961.5,1960.9,1.752]
[1770982920395,0.002,1961.5,1961.0,0.4790214]
[1770982920686,1.65029954,1961.8,1961.0,0.45319897]
[1770982921189,0.37595273,1961.8,1961.2,0.45319897]
[1770982921483,1.65029852,1961.8,1961.2,0.45319897]
[1770982921956,0.37595273,1961.8,1961.2,0.45319897]
[1770982923057,0.37595273,1961.8,1961.4,0.45319897]
[1770982923257,1.27399023,1962.4,1961.7,0.45319897]
[1770982924153,5.09464069,1962.9,1961.7,0.45319897]
[1770982924154,1.27310689,1963.7,1962.3,0.45319897]
[1770982924469,1.27310689,1963.7,1962.2,8.10318183]
[1770982924470,1.74360366,1963.7,1962.5,0.45319897]
[1770982924671,0.47049677,1963.7,1962.6,0.45319897]
[1770982924982,0.00153886,1964.0,1962.8,0.45319897]
[1770982925153,0.00153886,1964.0,1963.0,0.45319897]
[1770982925668,5.0906988,1964.4,1963.1,0.92974559]
[1770982925870,0.47049677,1964.2,1963.2,0.47654662]
[1770982926075,0.47049677,1964.0,1963.3,0.47654662]
[1770982926375,0.47049677,1964.0,1963.4,0.47654662]
[1770982926573,0.47049677,1964.0,1963.0,0.00153886]
[1770982926887,3.10049677,1963.9,1963.0,0.00153886]
[1770982927386,1.71,1963.8,1963.0,0.00153886]
[1770982928079,1.71,1963.7,1963.0,0.00153886]
[1770982928694,1.709,1963.7,1963.0,0.00153886]
[1770982930495,1.708,1963.7,1963.0,0.00153886]
[1770982930863,1.27304206,1963.8,1963.0,0.00153886]
[1770982931073,1.708,1963.7,1963.0,0.00153886]
[1770982931275,2.17849677,1963.7,1963.0,0.00153886]
[1770982931673,0.47049677,1963.6,1963.0,0.00153886]
[1770982932069,1.708,1963.5,1963.0,0.00153886]
[1770982932482,1.707,1963.4,1963.0,0.00153886]
[1770982932865,1.707,1963.7,1963.0,0.00153886]
[1770982933076,1.743474,1963.9,1963.0,0.00153886]
[1770982933290,1.707,1963.7,1963.0,0.00153886]
[1770982934666,1.706,1963.6,1963.0,1.27509973]
[1770982935101,1.706,1963.6,1963.0,0.00153886]
[1770982935466,1.706,1963.7,1963.0,0.00153886]
[1770982937200,1.27317172,1963.6,1963.0,0.00153886]
[1770982939307,1.74366849,1963.6,1963.0,0.00153886]
[1770982939513,0.47049677,1964.9,1963.2,0.45319897]
[1770982939699,2.19025634,1965.1,1963.8,0.45319897]
[1770982939902,0.523,1964.8,1963.8,0.45319897]
[1770982941181,0.47049677,1964.8,1963.8,1.72619461]
[1770982941396,2.623,1964.7,1963.9,0.45319897]
[1770982942407,2.622,1964.6,1963.9,0.45319897]
[1770982942614,1.704,1964.5,1963.9,0.45319897]
[1770982942991,1.704,1964.5,1963.8,1.27299564]
[1770982943198,1.704,1964.5,1963.7,5.09228005]
[1770982943513,2.97662218,1964.5,1963.7,5.09228005]
[1770982943884,3.44711895,1964.5,1963.3,0.45319897]
[1770982944576,0.47049677,1964.4,1963.3,0.45319897]
[1770982945691,1.74321478,1964.3,1963.3,1.72651582]
[1770982946227,0.47049677,1964.2,1963.3,1.27331685]
[1770982946388,1.27271801,1964.3,1963.3,1.72651582]
[1770982946709,2.622,1964.2,1963.3,1.72651582]
[1770982948718,1.702,1964.2,1963.5,0.45319897]
[1770982949996,1.702,1964.2,1963.3,1.72651582]
[1770982950193,1.702,1964.2,1963.4,0.4734868]
[1770982950396,1.702,1964.2,1963.3,1.27331685]
[1770982950397,2.17249677,1964.2,1963.3,1.27331685]
[1770982950917,1.27284761,1964.1,1963.2,1.27337929]
[1770982951097,1.27284761,1964.1,1963.1,1.73724324]
[1770982951418,1.73218136,1964.1,1963.1,1.73724324]
[1770982953030,1.73218136,1964.1,1963.4,0.001]
[1770982953521,2.619,1964.0,1963.4,0.001]
[1770982954099,3.10115559,1964.0,1963.4,0.001]
[1770982954927,1.27304206,1963.8,1963.4,0.001]
[1770982955303,1.702,1963.7,1963.4,0.001]
[1770982955503,2.62,1963.7,1963.4,0.001]
[1770982957002,1.27317172,1963.6,1963.4,0.001]
[1770982960710,1.75532731,1963.6,1962.7,1.75904027]
[1770982960909,0.48215559,1963.5,1962.7,0.48533424]
[1770982961109,0.48215559,1963.5,1962.0,0.00153886]
[1770982961110,1.75552186,1963.3,1962.3,1.75930926]
[1770982961327,1.708,1963.2,1962.3,1.75930926]
[1770982961531,2.19015559,1963.2,1962.3,0.48533424]
[1770982961946,0.48215559,1963.1,1962.0,1.76102716]
[1770982962105,0.918,1963.0,1962.0,1.76102716]
[1770982963129,1.75578134,1962.9,1962.0,1.27569292]
[1770982963333,1.75578134,1962.9,1962.0,0.00153886]
[1770982964309,0.48215559,1962.8,1962.0,0.00153886]
[1770982964538,1.706,1962.7,1962.0,0.00153886]
[1770982965442,1.27382044,1962.6,1962.0,0.00153886]
[1770982966745,1.27382044,1962.6,1962.3,0.001]
[1770982968724,1.27382044,1962.6,1962.0,0.00153886]
[1770982970249,2.628,1962.5,1962.0,0.00153886]
[1770982972150,1.27395026,1962.4,1962.0,0.00153886]
[1770982972550,2.629,1962.3,1962.0,0.4868731]
[1770982972869,1.711,1962.2,1962.0,0.4868731]
[1770982973219,1.711,1962.2,1962.0,0.00153886]
[1770982974217,2.98511181,1962.2,1962.0,0.00153886]
[1770982975123,1.711,1962.2,1962.0,0.00153886]
[1770982975320,2.98508037,1962.2,1962.0,0.00153886]
[1770982975520,1.711,1962.2,1962.0,0.00153886]
[1770982976346,2.98508339,1962.2,1962.0,0.00153886]
[1770982976546,1.711,1962.2,1962.0,0.00153886]
[1770982976717,1.27382044,1962.7,1962.0,0.4868731]
[1770982976924,2.631,1962.6,1962.0,0.4868731]
[1770982979456,2.63,1962.5,1962.2,0.48533424]
[1770982979747,1.712,1962.4,1962.2,0.48533424]
[1770982980364,1.714,1962.3,1962.2,0.48533424]
[1770982980555,0.002,1962.3,1962.2,0.48533424]
[1770982980752,1.27330141,1963.4,1962.2,0.4653312]
[1770982980952,0.002,1963.1,1962.2,0.4653312]
[1770982981134,0.49711026,1963.1,1962.2,0.4653312]
[1770982981530,1.27356087,1963.0,1962.3,1.27401518]
[1770982981731,1.27356087,1963.0,1962.3,1.73934638]
[1770982982138,1.27356087,1963.0,1962.3,0.4653312]
[1770982982953,0.002,1963.1,1962.3,0.4653312]
[1770982983155,2.628,1962.9,1962.3,0.4653312]
[1770982983329,1.27551597,1963.1,1962.3,0.4653312]
[1770982983527,2.628,1963.0,1962.4,1.73928146]
[1770982983753,2.628,1963.0,1962.4,0.4653312]
[1770982983941,2.628,1963.0,1962.3,1.27397442]
[1770982984124,2.628,1963.0,1962.2,1.73936216]
[1770982985382,3.12311026,1963.0,1962.2,1.73936216]
[1770982985565,3.90062575,1962.9,1962.2,1.73936216]
[1770982985859,1.27362575,1962.9,1962.2,0.4653312]
[1770982986157,2.627,1962.8,1962.2,0.4653312]
[1770982986856,1.27356087,1963.0,1962.2,0.4653312]
[1770982987160,2.627,1962.9,1962.2,0.4653312]
[1770982987527,1.27367421,1962.9,1962.3,1.73934638]
[1770982987884,2.627,1962.8,1962.3,1.73934638]
[1770982990059,3.90069207,1962.8,1962.3,1.73934638]
[1770982990233,2.627,1962.8,1962.3,1.73934638]
[1770982990743,1.27367771,1962.9,1962.3,1.73934638]
[1770982990936,2.627,1962.8,1962.3,1.73934638]
[1770982991665,2.627,1962.7,1962.3,1.73934477]
[1770982991862,2.627,1962.7,1962.3,0.4653312]
[1770982992267,3.9008134,1962.7,1962.3,0.4653312]
[1770982992980,3.9008134,1962.7,1962.1,1.74045573]
[1770982993178,3.9008134,1962.7,1962.1,0.001]
[1770982993472,3.9008134,1962.7,1962.4,0.001]
[1770982994788,4.39592366,1962.7,1962.4,0.001]
[1770982995275,1.27367325,1962.9,1962.4,0.001]
[1770982995465,2.631,1962.6,1962.4,0.001]
[1770982995873,2.632,1962.5,1962.4,0.001]
[1770982996064,1.27367325,1962.9,1962.4,0.001]
[1770982996266,2.632,1962.8,1962.4,0.001]
[1770982996779,1.27375554,1962.7,1962.4,0.001]
[1770982997167,1.27362575,1962.9,1962.4,0.001]
[1770982997487,2.632,1962.8,1962.4,0.001]
[1770982998546,3.90574565,1962.8,1962.4,0.001]
[1770982999663,0.49511026,1962.6,1962.1,0.001]
[1770983000165,1.04549952,1962.5,1962.1,0.001]
[1770983000383,1.716,1962.4,1962.1,0.001]
[1770983001065,2.98998804,1962.4,1962.1,0.001]
[1770983001272,2.98995187,1962.4,1962.1,0.001]
[1770983001779,1.716,1962.4,1962.1,0.001]
[1770983002086,1.27379975,1962.7,1962.1,0.001]
[1770983002390,0.918,1962.3,1962.1,0.001]
[1770983002589,1.715,1962.2,1962.1,0.001]
[1770983004051,1.27404782,1962.3,1962.1,0.001]
[1770983004279,2.635,1962.2,1962.1,0.001]
[1770983009011,0.918,1962.2,1962.1,0.001]
[1770983009186,0.002,1962.3,1962.1,0.001]
[1770983009386,2.636,1962.2,1962.1,0.001]
[1770983011178,2.15571676,1962.2,1962.1,0.001]
[1770983012315,0.002,1962.3,1962.1,0.001]
[1770983012497,2.635,1962.2,1962.1,0.001]
[1770983012684,0.002,1962.3,1962.1,0.001]
[1770983013009,1.717,1962.2,1962.1,0.001]
[1770983015902,1.717,1962.2,1961.7,0.45803677]
[1770983016102,2.635,1962.1,1961.8,1.73237666]
[1770983018078,2.635,1962.1,1961.6,0.45803677]
[1770983018283,2.635,1962.1,1961.4,5.55639483]
[1770983018797,0.49194684,1962.0,1961.3,0.001]
[1770983018980,1.5924758,1961.9,1961.3,0.001]
[1770983019183,0.49194684,1961.9,1961.3,0.001]
[1770983019485,0.49194684,1961.9,1961.3,1.27565671]
[1770983019709,0.49194684,1961.9,1961.3,0.001]
[1770983020190,1.27433989,1961.8,1961.3,0.001]
[1770983020507,0.49194684,1961.7,1961.3,0.001]
[1770983020691,1.717,1961.6,1961.3,0.001]
[1770983022223,0.51238973,1961.5,1961.3,0.001]
[1770983022421,0.919,1961.4,1961.3,0.001]
[1770983023220,1.719,1961.4,1961.3,0.001]
[1770983024725,0.61777933,1961.4,1961.3,0.001]
[1770983024926,1.27438964,1961.8,1961.3,0.001]
[1770983025092,2.638,1961.7,1961.3,0.001]
[1770983025794,0.49194684,1961.6,1961.3,0.001]
[1770983026206,1.76647992,1961.6,1961.3,0.001]
[1770983026722,3.91242159,1961.7,1961.3,0.001]
[1770983026896,2.638,1961.7,1961.3,0.001]
[1770983027296,3.91242422,1961.7,1961.3,0.001]
[1770983027809,2.638,1961.7,1961.3,0.001]
[1770983028325,3.91240485,1961.7,1961.3,0.001]
[1770983028620,1.27440485,1961.7,1961.3,0.001]
[1770983028833,2.641,1961.6,1961.3,0.001]
[1770983030534,3.91552214,1961.6,1961.3,0.001]
[1770983030719,2.641,1961.6,1961.3,0.001]
[1770983031115,1.27438261,1961.8,1961.3,0.001]
[1770983031315,2.643,1961.7,1961.3,0.001]
[1770983031818,1.27430922,1961.9,1961.3,0.001]
[1770983032144,2.643,1961.8,1961.3,0.001]
[1770983032442,2.643,1961.8,1961.4,0.001]
[1770983032642,1.724,1961.7,1961.4,0.001]
[1770983034241,1.726,1961.6,1961.4,0.45903677]
[1770983034848,1.726,1961.6,1961.4,1.733621]
[1770983036136,1.726,1961.6,1961.4,0.45903677]
[1770983036336,1.726,1961.6,1961.4,1.73363609]
[1770983036912,0.62455295,1961.6,1961.4,1.73363609]
[1770983038047,1.724,1961.9,1961.5,0.45803677]
[1770983039242,1.722,1961.9,1961.6,1.27446982]
[1770983039425,1.722,1961.9,1961.5,5.55606325]
[1770983040471,1.722,1961.9,1961.4,1.27555475]
[1770983040743,2.1954634,1961.9,1961.4,0.001]